{"text_format":"1","workbook":"xlsx","n_sheets":3,"sheets":["calcul de la représentativité","SYNDICATS CATEGORIELS","La Représentativité Syndicale"],"not_rendered":{"charts":0,"images":1,"macros":1,"external_links":0,"defined_names":0,"comments":0,"pivot_tables":0},"unopened":[],"bounds":{"document_bytes":16777216,"sheet_cells":100000,"rows_first":2000,"rows_last":500,"rows_between":2000,"halvings":0,"cell_chars":16384,"cell_head_chars":4096},"cells_cut":0,"cells_raw":0,"read":"whole","date_system":"1900"}

{"sheet":"calcul de la représentativité","index":0,"n_rows":55,"n_cols":8,"rows_kept":55,"cut":false,"hidden":false,"merged":[[30,7,33,8],[4,1,4,4],[0,0,0,6],[22,0,24,0],[26,0,28,0],[17,7,28,8],[37,0,37,5],[55,0,57,0],[39,2,39,3],[30,0,32,0],[10,0,12,0],[14,0,16,0],[18,0,20,0],[45,2,47,2],[9,0,9,5],[34,0,34,3]]}
["CALCUL DE LA REPRESENTATIVITE SYNDICALE DANS L'ENTREPRISE (1er tour des élections)"]
[]
[]
[]
[null,"1. Entrer les chiffres obtenus par les votes par collège uniquement dans les cases vides blanches ci-dessous."]
[null,"1er COLLEGE","2eme COLLEGE","3eme COLLEGE"," NBRE TOTAL SUFFRAGES EXPRIMES"]
[null,"NBRE DE SUFFRAGES EXPRIMES ","NBRE DE SUFFRAGES EXPRIMES ","NBRE DE SUFFRAGES EXPRIMES ","TOUT COLLEGE CONFONDUS"]
[null,null,null,null,{"$f":"B8+C8+D8","v":0}]
[null,{"$f":"SUM(B13,B17,B21,B25,B29,B33)","v":0},{"$f":"SUM(C13,C17,C21,C25,C29,C33)","v":0},{"$f":"SUM(D13,D17,D21,D25,D29,D33)","v":0}]
["2. Entrer les chiffres uniquement dans les cases vides blanches ci-dessous, par organisations syndicales participantes aux élections professionnelles dans l'entreprise pour le calcul initial."]
["CGT","1er COLLEGE","2eme COLLEGE","3eme COLLEGE","NBRE TOTAL DE BULLETINS","% REPRESENTATIVITE"]
[null,"NBRE DE BULLETINS ","NBRE DE BULLETINS ","NBRE DE BULLETINS ","TOUT COLLEGE CONFONDUS",{"$f":"IFERROR(IF(E41<100,E41,0),\"\")","v":""}]
[null,null,null,null,{"$f":"SUM(B13:D13)","v":0},{"$f":"F12","v":""}]
[]
["CFDT","1er COLLEGE","2eme COLLEGE","3eme COLLEGE","NBRE TOTAL DE BULLETINS","% REPRESENTATIVITE"]
[null,"NBRE DE BULLETINS ","NBRE DE BULLETINS ","NBRE DE BULLETINS ","TOUT COLLEGE CONFONDUS",{"$f":"IFERROR(IF(E42<100,E42,0),\"\")","v":""}]
[null,null,null,null,{"$f":"SUM(B17:D17)","v":0},{"$f":"F16","v":""}]
[null,null,null,null,null,null,null,"AVANT DE COMMENCER VOTRE CALCUL DE LA REPRESENTATIVITE, MERCI DE BIEN VOULOIR PRENDRE CONNAISSANCE DES INFORMATIONS SUR SON UTILISATION EN CLIQUANT SUR CE LIEN."]
["FO","1er COLLEGE","2eme COLLEGE","3eme COLLEGE","NBRE TOTAL DE BULLETINS","% REPRESENTATIVITE"]
[null,"NBRE DE BULLETINS ","NBRE DE BULLETINS ","NBRE DE BULLETINS ","TOUT COLLEGE CONFONDUS",{"$f":"IFERROR(IF(E43<100,E43,0),\"\")","v":""}]
[null,null,null,null,{"$f":"SUM(B21:D21)","v":0},{"$f":"F20","v":""}]
[]
["CFTC","1er COLLEGE","2eme COLLEGE","3eme COLLEGE","NBRE TOTAL DE BULLETINS","% REPRESENTATIVITE"]
[null,"NBRE DE BULLETINS ","NBRE DE BULLETINS ","NBRE DE BULLETINS ","TOUT COLLEGE CONFONDUS",{"$f":"IFERROR(IF(E44<100,E44,0),\"\")","v":""}]
[null,null,null,null,{"$f":"SUM(B25:D25)","v":0},{"$f":"F24","v":""}]
[]
["UNSA","1er COLLEGE","2eme COLLEGE","3eme COLLEGE","NBRE TOTAL DE BULLETINS","% REPRESENTATIVITE"]
[null,"NBRE DE BULLETINS ","NBRE DE BULLETINS ","NBRE DE BULLETINS ","TOUT COLLEGE CONFONDUS",{"$f":"IFERROR(IF(E45<100,E45,0),\"\")","v":""}]
[null,null,null,null,{"$f":"SUM(B29:D29)","v":0},{"$f":"F28","v":""}]
[]
["CFE-CGC","1er COLLEGE","2eme COLLEGE","3eme COLLEGE","NBRE TOTAL DE BULLETINS","% REPRESENTATIVITE",{"$f":"IFERROR(IF(G43<100,G43,0),\"\")","v":""},"CLIQUER ICI POUR INFORMATIONS SUR LE CALCUL PARTICULIER DE LA REPRESENTATIVITE POUR LE SYNDICAT CATEGORIEL CFE-CGC"]
[null,"NBRE DE BULLETINS ","NBRE DE BULLETINS ","NBRE DE BULLETINS ","TOUT COLLEGE CONFONDUS",{"$f":"IFERROR(IF(ISBLANK(D33),G41,0),\"\")","v":""},{"$f":"IFERROR(IF(G42<100,G42,0),\"\")","v":""}]
[null,null,null,null,{"$f":"SUM(B33:D33)","v":0},{"$f":"IFERROR(IF(ISBLANK(C33),G42,0),\"\")","v":""},{"$f":"IFERROR(IF(G41<100,G41,0),\"\")","v":""}]
[null,null,null,null,null,{"$f":"IFERROR(IF(SUM(F32:F33)=0,E46,0),\"\")","v":""}]
["3. vérifier sur le tableau ci-dessous si votre saisie du nombre des bulletins pour chaque organisations syndicales est correcte."]
["NBRE TOTAL DE BULLETINS",{"$f":"IF(B8=B9,\"RESULTAT EXACT\",\"ERREUR DE RESULTAT                                     vérifier et réctifier la saisie des chiffres \")","v":"RESULTAT EXACT"},{"$f":"IF(C8=C9,\"RESULTAT EXACT\",\"ERREUR DE RESULTAT                                                vérifier et réctifier la saisie des chiffres\")","v":"RESULTAT EXACT"},{"$f":"IF(D8=D9,\"RESULTAT EXACT\",\"ERREUR DE RESULTAT                                                 vérifier et réctifier la saisie des chiffres\")","v":"RESULTAT EXACT"}]
[]
["Attention: Toutes les organisations syndicales n'ayant pas atteintes 10% dans le calcul initial, seront exclues dans le calcul du résultat final pour la représentativité dans l'entreprise."]
[]
[null,null,"Résultat final de la représentativité syndicale dans l'entreprise"]
[null,null,"CGT",{"$f":"IFERROR(F41/A45,\"\")","v":""},{"$f":"(E13/E8)*100","v":{"$error":"#DIV/0!"}},{"$f":"IF(F13>=10,F13,0)","v":""},{"$f":"(C33/C8)*100","v":{"$error":"#DIV/0!"}},{"$f":"(C33/E8)*100","v":{"$error":"#DIV/0!"}}]
[null,null,"CFDT",{"$f":"IFERROR(F42/A45,\"\")","v":""},{"$f":"(E17/E8)*100","v":{"$error":"#DIV/0!"}},{"$f":"IF(F17>=10,F17,0)","v":""},{"$f":"(D33/D8)*100","v":{"$error":"#DIV/0!"}},{"$f":"(D33/E8)*100","v":{"$error":"#DIV/0!"}}]
[null,null,"FO",{"$f":"IFERROR(F43/A45,\"\")","v":""},{"$f":"(E21/E8)*100","v":{"$error":"#DIV/0!"}},{"$f":"IF(F21>=10,F21,0)","v":""},{"$f":"E46","v":{"$error":"#DIV/0!"}},{"$f":"(E33/E8)*100","v":{"$error":"#DIV/0!"}}]
[null,null,"CFTC",{"$f":"IFERROR(F44/A45,\"\")","v":""},{"$f":"(E25/E8)*100","v":{"$error":"#DIV/0!"}},{"$f":"IF(F25>=10,F25,0)","v":""}]
[{"$f":"SUM(F41+F42+F43+F44+F45+F46+F47+F48)","v":{"$error":"#VALUE!"}},null,"UNSA",{"$f":"IFERROR(F45/A45,\"\")","v":""},{"$f":"(E29/E8)*100","v":{"$error":"#DIV/0!"}},{"$f":"IF(F29>=10,F29,0)","v":""}]
[{"$f":"C8+D8","v":0},null,"CFE-CGC",{"$f":"IFERROR(F46/A45,\"\")","v":""},{"$f":"(E33/A46)*100","v":{"$error":"#DIV/0!"}},{"$f":"IF(F32<=10,0,H41)","v":{"$error":"#DIV/0!"}}]
[null,null,null,{"$f":"IFERROR(F47/A45,\"\")","v":""},null,{"$f":"IF(F33<=10,0,H42)","v":{"$error":"#DIV/0!"}}]
[null,null,null,{"$f":"IFERROR(F48/A45,\"\")","v":""},null,{"$f":"IF(F34<=10,0,H43)","v":{"$error":"#DIV/0!"}}]
[]
[]
[]
[]
[]
[]
[null,"fédération THCB CGT 2019",null,null,null,null,null,"fédération.thcb.cgt COPYRIGHT©"]

{"sheet":"SYNDICATS CATEGORIELS","index":1,"n_rows":31,"n_cols":9,"rows_kept":31,"cut":false,"hidden":false,"merged":[[22,0,22,6],[1,0,1,7],[0,0,0,4],[11,0,11,10],[20,0,20,10],[21,0,21,10],[7,8,8,9]]}
["LE CAS PARTICULIER DES SYNDICATS CATEGORIELS"]
["Un syndicat catégoriel peut être reconnu représentatif sous certaines conditions spécifiques (article L.2122-2 du code du travail) :"]
["* les 10% sont calculés sur la base des résultats obtenus dans le collège électoral dans lequel ses règles statutaires  "]
["            doivent lui donner vocation à présenter des candidats. Autrement dit, l’audience des syndicats concernés est mesurée "]
["            dans le ou les seul(s) collège(s) dans le(s)quel(s) ils ont vocation à présenter des candidats."]
["* le syndicat doit être affilié à une confédération syndicale catégorielle interprofessionnelle nationale."]
[]
["Comment s’apprécie la représentativité des syndicats catégoriels ?",null,null,null,null,null,null,null,"CLIQUER ICI POUR REVENIR A LA FEUILLE DE CALCUL"]
[]
["Appréciation des résultats dans les seuls collèges où le syndicat présente des candidats"]
[]
["Le fait pour un syndicat d’être catégoriel lui permet de bénéficier de mesures dérogatoires pour apprécier sa représentativité. Ces dérogations s’expliquent par le fait "]
["que, par nature, les syndicats catégoriels ne présentent pas des candidats dans l’ensemble des collèges : leur représentativité est donc mesurée dans les seuls collèges "]
["électoraux au sein desquels ces syndicats ont vocation à présenter des candidats."]
["Au terme du Code du travail, les règles sont donc les suivantes : « dans l’entreprise ou l’établissement, sont représentatives à l’égard des personnels relevant des collèges "]
["électoraux dans lesquels leurs règles statutaires leur donnent vocation à présenter des candidats les organisations syndicales catégorielles affiliées à une confédération "]
["syndicale catégorielle interprofessionnelle nationale qui satisfont aux critères de l’article L. 2121-1 et qui ont recueilli au moins 10 % des suffrages exprimés au premier "]
["tour des dernières élections des titulaires au comité d’entreprise ou de la délégation unique du personnel ou, à défaut, des délégués du personnel dans ces collèges, "]
["quel que soit le nombre de votants » [C. trav., art. L. 2122-2]."]
[]
["Règles spécifiques: A la différence des syndicats intercatégoriels, la mesure de l’audience est réalisée sur la base des suffrages exprimés au sein du ou des"]
[" collèges que le syndicat catégoriel a vocation à représenter [C. trav., art. L. 2122-2]. Ainsi, si un syndicat n’a vocation à représenter qu’un seul collège, le seuil des 10 % "]
[" des suffrages à recueillir pour être considéré représentatif doit être atteint dans ce seul collège."]
[]
["Cas particuliers"]
["Le syndicat catégoriel a présenté des candidats dans plusieurs collèges. Logiquement, si le syndicat présente des candidats dans plusieurs collèges, son audience "]
["électorale sera appréciée en fonction des suffrages recueillis dans l’ensemble de ces collèges [Cass. soc., 28 sept. 2011, n° 10-26.693]. Un syndicat catégoriel peut "]
["en effet présenter des candidats dans l’ensemble des collèges que ses statuts lui donnent vocation à représenter."]
["En cas de collège unique: Le syndicat catégoriel peut tout à fait présenter des candidats lorsqu’il n’existe qu’un collège unique. Par définition, sa représentativité doit alors"]
["être appréciée sur la base des suffrages recueillis au sein de ce collège unique. En pratique, les règles dérogatoires prévues en faveur des syndicats catégoriels ne peuvent "]
["alors être appliquées."]

{"sheet":"La Représentativité Syndicale","index":2,"n_rows":32,"n_cols":7,"rows_kept":32,"cut":false,"hidden":false,"merged":[[2,0,2,11],[7,1,8,2]]}
[]
[]
["LA REPRESENTATIVITE SYNDICALE "]
[]
[]
[]
[]
[null,"CLIQUER ICI POUR REVENIR A LA FEUILLE DE CALCUL"]
[]
[]
[]
["Depuis les ordonnances MACRON, il est important de bien mesurer la représentativité de nos organisations syndicales CGT. Aussi, il est important de rappeler que  "]
["dorénavant, les accords d'entreprises négociés sont primordiaux et qu'ils ne sont applicables que si nos bases syndicales obtiennent 50% de représentativité pour que leurs "]
["signatures soient valables. C'est cet aspect du rapport de force qu'il faut désormais renforcer dans les entreprises de nos branches."]
[]
["Pour mieux les aider, la fédération THCB CGT a mis au point ce simulateur qui permet le calcul simultané du taux de représentativité syndicales dans leurs entreprises, ainsi "]
["qu'à l'échelle de plusieurs entreprises au sein d'un groupe."]
[]
["Afin de pouvoir l'utiliser librement, il suffit de télécharger le fichier sur votre ordinateur."]
["SI A L'OUVERTURE DE LA FEUILLE DE CALCUL, UN AVERTISSEMENT APPARAÎT AVEC LA MENTION D'ACTIVITER LA \"macro\", CLIQUER SUR \"activiter\"."]
[]
["Se munir ensuite du procès verbal contenant les résultats des votes, et remplir uniquement les cases blanches des tableaux qui sont les seules accessibles, pour saisir vos "]
["données à partir des résultats obtenus lors des élections professionnelles. "]
[]
["Pour le calcul à l'échelle d'un groupe, il suffit d'additionner au préalable les suffrages ainsi que les bulletins de votes pour l'ensemble des organisations syndicales de chaque "]
["entreprise, puis de les saisir dans les cases correspondantes. Les résultats ainsi obtenus seront les mesures de la représentativité au sein du groupe."]
[]
[]
[]
[]
[]
[null,null,null,null,null,null,"La fédération THCB CGT"]